Workbook

Sheet Hoofdmenu
B3: Bodemenergie ontwerp en vergunningaanvraag
B30: KWA Bedrijfsadviseurs B.V. kan niet aansprakelijk worden gesteld voor fouten in de software of schade als
B31: gevolg van het gebruik van deze software. Er kunnen geen rechten worden ontleend aan de software of documenten.
B32: Het intellectuele eigendom en copyright zijn van KWA Bedrijfsadviseurs B.V. te Amersfoort

Sheet Verantwoordelijkheden
A1: Verantwoordelijkheden bij ontwerp
A4: Onderwerp | D4: Bovengronds ontwerper | E4: Ondergronds ontwerper | F4: Overdracht van informatie
A5: Bovengronds systeemconcept | D5: x | F5: Spreadsheet uitgangspunten
A6: Uitgangspunten bovengronds (vraagspecificatie aan ondergronds systeem) | D6: x | F6: Spreadsheet uitgangspunten
A7: Uitgangspunten energiebalans (koudeoverschot, sturingsmogelijkheden) | D7: x | F7: Spreadsheet uitgangspunten
A8: Uitgangspunten TSA (temperatuurverlies) | D8: x | E8: x? | F8: Spreadsheet uitgangspunten
A9: Afwijkende condities startsituatie | D9: x | E9: x? | F9: Spreadsheet uitgangspunten
A10: Haalbaarheid geohydrologisch en wet- en regelgeving | E10: x | F10: Rapportage (H2 geohydrologische situatie)
A11: Ontwerp bronnensysteem | E11: x | F11: Rapportage (H3 ontwerp)
A12: Toetsing bronlocaties op inpasbaarheid, bereikbaarheid en eigendomsrechten | D12: x? | E12: x? | F12: Rapportage (H3 ontwerp)
A13: Lozingsroute ontwikkel- en spuiwater | D13: x? | E13: x? | F13: Rapportage (H3 ontwerp)
A14: Toetsing onttrekkingstemperaturen en energiebalans | E14: x | F14: Rapportage (H4 effectberekeningen)
A15: SPF ondergronds systeem | D15: x? | E15: x? | F15: Spreadsheet uitgangspunten
A16: SPF totaal systeem | D16: x | F16: Spreadsheet uitgangspunten
A17: Vergunningaanvraag bodemenergiesysteem | E17: x | F17: Ingediende aanvraag
A18: Vergunningaanvraag/melding lozing | E18: x? | F18: Ingediende aanvraag/melding
A19: …
A20: …
A21: …

Sheet Projectinformatie
B2: Algemene projectinformatie
B3: Aspect | C3: Beschrijving | D3: Contactpersoon / overig
B4: Project: | C4: <<Projectnaam>>
C5: <<adres>>
C6: <<postcode>>
B7: Plaats | C7: <<plaats>>
B8: Type project | C8: Vergunningsaanvraag
B9: Projectbeschrijving | C9: Type gebouw
B10: doel bodemenergiesysteem | C10: Doel bodemenergie
B11: Type systeem | C11: type systeem
B12: bijzonderheden
B13: Eigenaar/vergunninghouder | C13: <eigenaar> | D13: <Contactpersoon eigenaar>
B14: Opdrachtgever | C14: <Klant> | D14: <Contactpersoon opdrachtgever>
B15: Straat opdrachtgever | C15: <straat + nummer>
B16: Postcode opdrachtgever | C16: <Postcode>
B17: Plaats opdrachtgever | C17: <Plaats opdrachtgever>
B18: Ontwerper bovengronds | C18: <Bedrijf ontwerp bovengronds> | D18: <Contactpersoon bov. Ontwerp>
B19: Ontwerper ondergronds | C19: KWA Bedrijfsadviseurs B.V. | D19: <Contactpersoon KWA>
B20: Installateur | C20: <Bedrijf installateur> | D20: <Contactpersoon Installateur>
B21: Boorbedrijf | C21: <Boorbedrijf> | D21: <Contactpersoon boorder>
B22: Begindatum aanleg bodemenergiesysteem | C22: <geschatte aanvang, bijv. Q2 - 2025>
B23: Begindatum in bedrijf stellen | C23: <geschatte aanvang, bijv. Q4 - 2025>
B24: Opdrachtgever KWA | C24: <Opdrachtgever KWA> | D24: <Contactpersoon Opdr. KWA>
B52: Type gebouw | C52: type systeem | D52: Doel bodemenergie
B53: Nieuwbouw | C53: Doublet opslag | D53: Klimaat beheersing
B54: Renovatie | C54: Monobron opslag | D54: Proceskoeling
B55: Utiliteitsbouw | C55: Doublet recirculatie | D55: Tijdelijk opslag rest energie
B56: Hotel | C56: Monobron recirculatie
B57: Kantoorgebouw
B58: Ziekenhuis
B59: Multifunctionele accommodatie
B61: Type project
B62: Haalbaarheidsstudie
B63: Vergunningsaanvraag

Sheet Aanvrager_en_machtiging
B2: Machting
B4: Hierbij machtig ik KWA Bedrijfsadviseurs B.V. voor het indienen van benodigde aanvragen
B5: voor het open bodemenergiesysteem.
B7: Projectnaam:
B8: Voorbeeld Project
B10: Gegevens van de aanvrager (op wiens naam komt de vergunning van het systeem):
A12: 1 | B12: Bedrijf
B13: KVK-nummer
B14: Vestigingsnummer | E14: indien bekend
B15: Statutaire naam
B16: Handelsnaam | E16: optioneel
A18: 2 | B18: Contactpersoon
B19: Geslacht | C19: m/v
B20: Voorletters
B21: Voorvoegsels | E21: optioneel
B22: Achternaam
B23: Functie | E23: optioneel
A25: 3 | B25: Vestigingsadres bedrijf
B26: Postcode
B27: Huisnummer
B28: Huisletter | E28: optioneel
B29: Huisnummertoevoeging | E29: optioneel
B30: Straatnaam
B31: Woonplaats
A33: 4 | B33: Correspondentieadres
B34: Postbus | E34: of gelijk aan
B35: Postcode | E35: vestigingsadres
B36: Plaats
A38: 5 | B38: Contactgegevens
B39: Telefoonnummer
B40: Faxnummer | E40: optioneel
B41: E-mailadres
A43: 6 | B43: Eigendomssituatie van het perceel waar het bodemenergiesysteem wordt gerealiseerd
B44: Eigendomssituatie | C44: eigenaar / erfpachter / huurder / anders
A47: 7 | B47: Gegevens boorbebrijf
B48: Naam
B49: Certificeringsnummer Mechanisch boren | E49: nr indien bekend
A51: 8 | B51: Ondertekening machtiging
B52: Datum
B53: Handtekening

Sheet Ontwerp_uitgangspunten
C2: UITGANGSPUNTEN ONTWERP BODEMENERGIESYSTEEM | K2: =Projectinformatie!$C$4 -> <<Projectnaam>>
C4: Type Bronnensysteem | E4: =Projectinformatie!$C$9 -> Type gebouw
AW6: Tabel 5.1: uitgangspunten ondergronds deel bodemenergiesysteem
C7: WINTERSEIZOEN | E7: GEBOUW AFGIFTE | W7: BRON | AE7: BRON SEIZOENSGEMIDDELD | AX7: Eenheid | AY7: Zomersituatie | AZ7: Wintersituatie
AN8: BRON VERGUNNING AANVRAAG | AQ8: =+AH13 -> 200 | AR8: m3/h | AW8: Maximaal infiltratie-/onttrekkingsdebiet | AX8: m3/uur | AY8: =+AQ50 -> 20 | AZ8: =+AQ8 -> 200
C9: VERWARMING GEBOUW TOTAAL | E9: Totaal warmte behoefte | H9: =+H18+H25+H32 -> 409.2 | I9: MWh | K9: SPF VERWARMEN | L9: =+L10/L11 -> 3.571428571 | T9: bovengronds | U9: ondergronds | W9: Totaal bron warmte leveren | Z9: =+Z25+Z40 -> 306.9 | AA9: MWh | AE9: Totaal bron warmte leveren | AH9: =+Z9 -> 306.9 | AI9: MWh | AN9: WINTERSEIZOEN | AP9: =AH15 -> 86000 | AR9: m3/seioen | AW9: Gemiddelde infiltratie-/onttrekkingshoeveelheid | AX9: m3/seizoen | AY9: =+AG56 -> 29000 | AZ9: =+AG14 -> 0
E10: Vermogen verwarming | H10: =+H19+H26 -> 186 | I10: kW | K10: Warmte duurzaam (MWh) | L10: =+H25+H32 -> 409.2 | W10: Vermogen maximaal | Z10: =IF(inzet_extra_koudeladen=gelijktijdig_met_WP,Z26+Z41,MAX(Z26,Z41)) -> 139.5 | AA10: kW | AE10: Bandbreedte warmte leveren | AG10: +/- | AH10: 30 | AI10: % | AW10: Maximale infiltratie-/onttrekkingshoeveelheid | AX10: m3/seizoen | AY10: =+AP51 -> 37000 | AZ10: =+AP9 -> 86000
K11: Elektriciteit (Mwhe) | L11: =Elek_WP+Elek_WP_gelijktijdig+Elek_balans_koudeladen+AA16 -> 114.576 | W11: Equivalente vollast uren | Z11: =IF(Z10<>0,Z9/Z10*1000,0) -> 2200 | AA11: h | AE11: Bandbreedte warmte | AF11: =ROUND(AH9*(1-$AH$10/100),0) -> 215 | AG11: à | AH11: =ROUND(AH9*(1+$AH$10/100),0) -> 399 | AI11: MWh | AW11: Gemiddelde onttrekkingstemperatuur | AX11: °C | AY11: =+AR55 -> 10 | AZ11: =+AO13 -> 13
W12: Ontwerp temperatuur | X12: =+X28 -> 13 | Y12: ª | Z12: =+X12-Z10/(Z13*Cw) -> 7 | AA12: °C | AE12: Gemiddelde temperatuur | AF12: 13 | AG12: ª | AH12: 9 | AI12: °C | AJ12: =+IF((AF12-AH12)<4,"let op dT moet minimaal 4°C zijn", "") ->  | AW12: Gemiddelde infiltratietemperatuur | AX12: °C | AY12: =+AO55 -> 14 | AZ12: =+AR13 -> 9
W13: Volumestroom maximaal | Z13: =IF(inzet_extra_koudeladen=gelijktijdig_met_WP,Z29+Z44,MAX(Z29,Z44)) -> 19.97613365 | AA13: m3/h | AE13: Bron capaciteit | AH13: 200 | AI13: m3/h | AN13: Gemiddelde temperatuur | AO13: =+AF12 -> 13 | AQ13: °C | AR13: =+AH12 -> 9 | AS13: °C | AW13: Vermogen bij ontwerp temperaturen | AX13: kW | AY13: =+Z52 -> 186 | AZ13: =+Z10 -> 139.5
AE14: Seizoensdebiet gemiddeld | AH14: =ROUND(AH9/(Cw*(AF12-AH12)),0)*1000 -> 66000 | AI14: m3/seiz. | AN14: Minimale temperatuur | AR14: 5 | AS14: °C | AW14: Ontladen koude / warmte | AX14: MWh | AY14: =+AH51 -> 134 | AZ14: =+AH9 -> 306.9
X15: SPF bronnen | AA15: 25 | AE15: Seizoensdebiet maximaal | AH15: =ROUND(AH11/(Cw*(AF12-AH12)),0)*1000 -> 86000 | AI15: m3/seiz. | AW15: Ontladen koude balansvoorziening | AX15: MWh | AY15: =Q104 -> 0 | AZ15: =Q40 -> 0
E16: OPWEKKING | X16: Elektriciteit (Mwhe) | AA16: =+Z9/AA15 -> 12.276 | AW16: Koude overschot in de bodem | AX16: MWh | AY16: =+AQ116 -> 172.9 | AZ16: =(+AQ117/100) -> 2.290298507
AW17: Koudeoverschot in de bodem | AX17: % | AY17: =IF(AQ117=100,0,AQ117) -> 229.0298507
C18: VERWARMING PIEKVOORZIENING | E18: Ketel | H18: 0 | I18: MWh | AW18: SPF BES | AX18: - | AY18: =L51 -> 25 | AZ18: =L9 -> 3.571428571
E19: Vermogen | H19: 0 | I19: kW | AW19: SPF BES totaal | AX19: - | AY19: =AO122 -> 4.529082177
E20: Equivalente vollast uren | H20: =IF(H19<>0,H18/H19*1000,0) -> 0 | I20: h | K20: valt buiten SPF-BES
E21: Ontwerp temperatuur | F21: 30 | G21: ª | H21: 40 | I21: °C
E22: Volumestroom | H22: =H19/(Cw*(H21-F21)) -> 0 | I22: m3/h
C25: VERWARMING WP | E25: Warmtepomp condensor | H25: 409.2 | I25: MWh | N25: Warmtepomp verdamper | Q25: =+H25-L29 -> 306.9 | R25: MWh | W25: Bron warmte leveren | Z25: =+Q25 -> 306.9 | AA25: MWh
E26: Vermogen | H26: 186 | I26: kW | N26: Vermogen | Q26: =+H26-H26/L28 -> 139.5 | R26: kW | W26: Vermogen | Z26: =+Q26 -> 139.5 | AA26: kW
E27: Equivalente vollast uren | H27: =IF(H26<>0,H25/H26*1000,0) -> 2200 | I27: h | K27: SPF WP seizoensgem. | L27: 4 | N27: Equivalente vollast uren | Q27: =IF(Q26<>0,Q25/Q26*1000,0) -> 2200 | R27: h | T27: TSA | W27: Equivalente vollast uren | Z27: =IF(Z26<>0,Z25/Z26*1000,0) -> 2200 | AA27: h
E28: Ontwerp temperatuur | F28: 30 | G28: ª | H28: 40 | I28: °C | K28: COP WP bij piek | L28: 4 | N28: Ontwerp temperatuur | O28: 12 | P28: ª | Q28: 6 | R28: °C | T28: 1 | W28: Ontwerp temperatuur | X28: =+O28+dT_TSA_verwarming -> 13 | Y28: ª | Z28: =+Q28+dT_TSA_verwarming -> 7 | AA28: °C
E29: Volumestroom | H29: =H26/(Cw*(H28-F28)) -> 15.98090692 | I29: m3/h | K29: Elektriciteit WP (Mwhe) | L29: =+H25/L27 -> 102.3 | N29: Volumestroom | Q29: =Q26/(Cw*(-Q28+O28)) -> 19.97613365 | R29: m3/h | T29: dT (K) | W29: Volumestroom | Z29: =Z26/(Cw*(-Z28+X28)) -> 19.97613365 | AA29: m3/h
C32: GELIJKTIJDIG VERWARMEN EN KOELEN | E32: Warmtepomp condensor | H32: 0 | I32: MWh | N32: Warmtepomp verdamper ª koelen | Q32: =+H32-L36 -> 0 | R32: MWh
E33: Vermogen | H33: =+H26 -> 186 | I33: kW | N33: Vermogen | Q33: =+H33-H33/L35 -> 139.5 | R33: kW
E34: Equivalente vollast uren | H34: =IF(H33<>0,H32/H33*1000,0) -> 0 | I34: h | K34: SPF WP seizoensgem. | L34: =+SPF_WP -> 4 | N34: Equivalente vollast uren | Q34: =IF(Q33<>0,Q32/Q33*1000,0) -> 0 | R34: h
E35: Ontwerp temperatuur | F35: =+F28 -> 30 | G35: ª | H35: =+H28 -> 40 | I35: °C | K35: COP WP bij piek | L35: =+COP_WP -> 4 | N35: Ontwerp temperatuur | O35: =+O28 -> 12 | P35: ª | Q35: =+Q28 -> 6 | R35: °C
E36: Volumestroom | H36: =H33/(Cw*(H35-F35)) -> 15.98090692 | I36: m3/h | K36: Elektriciteit WP (Mwhe) | L36: =+H32/L34 -> 0 | N36: Volumestroom | Q36: =Q33/(Cw*(-Q35+O35)) -> 19.97613365 | R36: m3/h
R38: TSA | S38: 2
C40: BALANSVOORZIENING KOUDE LADEN | E40: Inzet balansvoorziening: | F40: niet gelijktijdig met WP | N40: Balansvoorziening | Q40: 0 | R40: MWh | W40: Bron balans koude laden | Z40: =+Q40 -> 0 | AA40: MWh
C41: (dry-cooler, oppervlaktewater, LBK, …) | E41: mogelijke keuzes: | N41: Vermogen | Q41: 0 | R41: kW | W41: Vermogen | Z41: =+Q41 -> 0 | AA41: kW
E42: gelijktijdig met WP | F42: (brondebiet wordt groter) | K42: SPF balansvoorziening | L42: 20 | N42: Equivalente vollast uren | Q42: =IF(Q41<>0,Q40/Q41*1000,0) -> 0 | R42: h | W42: Equivalente vollast uren | Z42: =IF(Z41<>0,Z40/Z41*1000,0) -> 0 | AA42: h
E43: niet gelijktijdig met WP | F43: (max vermogen maatgevend) | K43: Elektriciteit (Mwhe) | L43: =+Q40/L42 -> 0 | N43: Ontwerp temperatuur | O43: =+X43-dT_TSA_verwarming-dT_TSA2_BALANS_KOUDE_LADEN -> 10 | P43: ª | Q43: =+Z43-dT_TSA_verwarming-S38 -> 4 | R43: °C | W43: Ontwerp temperatuur | X43: =+X28 -> 13 | Y43: ª | Z43: =+Z28 -> 7 | AA43: °C
N44: Volumestroom | Q44: =Q41/(Cw*(-Q43+O43)) -> 0 | R44: m3/h | W44: Volumestroom | Z44: =Z41/(Cw*(-Z43+X43)) -> 0 | AA44: m3/h
AE45: warmtecapaciteit water | AH45: =4.19/3.6 -> 1.163888889 | AI45: kWh/(m3K)
C49: ZOMERSEIZOEN | E49: GEBOUW AFGIFTE | W49: BRON | AE49: BRON SEIZOENSGEMIDDELD
AN50: BRON VERGUNNING AANVRAAG | AQ50: =+AH55 -> 20 | AR50: m3/h
C51: KOELING GEBOUW TOTAAL | E51: Totaal koude behoefte | H51: =+H60+H67+H81+H96 -> 134 | I51: MWh | K51: SPF KOELING | L51: =+L52/L53 -> 25 | W51: Totaal bron koude leveren | Z51: =+Z67+Z81+Z104 -> 134 | AA51: MWh | AE51: Totaal bron koude leveren | AH51: =+Z51 -> 134 | AI51: MWh | AN51: ZOMERSEIZOEN | AP51: =+AG57 -> 37000 | AR51: m3/seizoen
E52: Vermogen | H52: =+H61+H68+H82+H97 -> 186 | I52: kW | K52: Koude duurzaam (MWh) | L52: =+H67+H74+H81+H96 -> 134 | W52: Vermogen maximaal | Z52: =IF(inzet_extra_warmteladen=gelijktijdig_bronkoeling,Z68+Z82+Z105,MAX(Z68+Z82,Z105)) -> 186 | AA52: kW | AE52: Bandbreedte warmte leveren | AH52: 30 | AI52: %
K53: Elektriciteit (Mwhe) | L53: =Elek_WP_KM+L99+L107+AA58 -> 5.36 | W53: Equivalente vollast uren | Z53: =IF(Z52<>0,Z51/Z52*1000,0) -> 720.4301075 | AA53: h | AE53: Bandbreedte warmte | AF53: =ROUND(AH51*(1-$AH$10/100),0) -> 94 | AG53: à | AH53: =ROUND(AH51*(1+$AH$10/100),0) -> 174 | AI53: MWh
W54: Ontwerp temperatuur | X54: =+Z52/(Z55*Cw)+Z54 -> 18 | Y54: © | Z54: =+Z70 -> 10 | AA54: °C | AE54: Gemiddelde temperatuur | AF54: 14 | AG54: © | AH54: 10 | AI54: °C | AJ54: =+IF((AF54-AH54)<4,"let op dT moet minimaal 4°C zijn", "") -> 
W55: Volumestroom maximaal | Z55: =IF(inzet_extra_warmteladen=gelijktijdig_bronkoeling,Z71+Z108,MAX(Z71,Z108)) -> 19.97613365 | AA55: m3/h | AE55: Bron capaciteit | AH55: 20 | AI55: m3/h | AN55: Gemiddelde temperatuur | AO55: =+AF54 -> 14 | AQ55: °C | AR55: =+AH54 -> 10 | AS55: °C
AE56: Seizoensdebiet gemiddeld | AG56: =ROUND(AH51/(Cw*(AF54-AH54)),0)*1000 -> 29000 | AI56: m3/seiz. | AN56: Maximale temperatuur | AO56: 25 | AQ56: °C
X57: SPF bronnen | AA57: 25 | AE57: Seizoensdebiet maximaal | AG57: =ROUND(AH53/(Cw*(AF54-AH54)),0)*1000 -> 37000 | AI57: m3/seiz.
E58: OPWEKKING | X58: Elektriciteit (Mwhe) | AA58: =+Z51/AA57 -> 5.36
C60: KOELING PIEKVOORZIENING | E60: Koelmachine (mechanische koeling) | H60: 0 | I60: MWh
E61: Vermogen | H61: 0 | I61: kW
E62: Equivalente vollast uren | H62: =IF(H61<>0,H60/H61*1000,0) -> 0 | I62: h | K62: valt buiten SPF-BES
E63: Ontwerp temperatuur | F63: 12 | G63: ª | H63: 5 | I63: °C
E64: Volumestroom | H64: =H61/(Cw*(-H63+F63)) -> 0 | I64: m3/h
C67: KOELING UIT BRON | E67: Bron koude leveren | H67: 134 | I67: MWh | W67: Bron koude leveren | Z67: =+H67 -> 134 | AA67: MWh
E68: Vermogen | H68: 186 | I68: kW | W68: Vermogen | Z68: =+H68 -> 186 | AA68: kW
E69: Equivalente vollast uren | H69: =IF(H68<>0,H67/H68*1000,0) -> 720.4301075 | I69: h | T69: TSA | W69: Equivalente vollast uren | Z69: =IF(Z68<>0,Z67/Z68*1000,0) -> 720.4301075 | AA69: h
E70: Ontwerp temperatuur | F70: 19 | G70: ª | H70: 11 | I70: °C | T70: 1 | W70: Ontwerp temperatuur | X70: =+F70-dT_TSA_koeling -> 18 | Y70: © | Z70: =+H70-dT_TSA_koeling -> 10 | AA70: °C
E71: Volumestroom | H71: =H68/(Cw*(-H70+F70)) -> 19.97613365 | I71: m3/h | T71: dT (K) | W71: Volumestroom | Z71: =Z68/(Cw*(-Z70+X70)) -> 19.97613365 | AA71: m3/h
X73: =IF(afvoer_condensorwarmte=naar_bron, " I", "") -> I
C74: GELIJKTIJDIG VERWARMEN EN KOELEN | E74: Warmtepomp verdamper | H74: =+Q32 -> 0 | I74: MWh | N74: Warmtepomp condensorªverwarmen | Q74: =+H32 -> 0 | R74: MWh | X74: =IF(afvoer_condensorwarmte=naar_bron, " I", "") -> I
E75: Vermogen | H75: =+Q33 -> 139.5 | I75: kW | N75: Vermogen | Q75: =+H33 -> 186 | R75: kW | X75: =IF(afvoer_condensorwarmte=naar_bron, " I", "") -> I
E76: Equivalente vollast uren | H76: =+Q34 -> 0 | I76: h | K76: SPF gerekend bij verwarmen | N76: Equivalente vollast uren | Q76: =+H34 -> 0 | R76: h | X76: =IF(afvoer_condensorwarmte=naar_bron, " I___", "") -> I___ | Y76: =IF(afvoer_condensorwarmte=naar_bron, "_", "") -> _ | Z76: =IF(afvoer_condensorwarmte=naar_bron, "_ in serie", "") -> _ in serie
E77: Ontwerp temperatuur | F77: =+O35 -> 12 | G77: ª | H77: =+Q35 -> 6 | I77: °C | N77: Ontwerp temperatuur | O77: =+F35 -> 30 | P77: ª | Q77: =+H35 -> 40 | R77: °C | Z77: =IF(afvoer_condensorwarmte=naar_bron, " I", "") -> I
E78: Volumestroom | H78: =+Q36 -> 19.97613365 | I78: m3/h | N78: Volumestroom | Q78: =+H36 -> 15.98090692 | R78: m3/h | Z78: =IF(afvoer_condensorwarmte=naar_bron, " I", "") -> I
Z79: =IF(afvoer_condensorwarmte=naar_bron, " ↓", "") -> ↓
C81: KOELING WP IN KOELMODUS | E81: Warmtepomp verdamper | H81: 0 | I81: MWh | N81: Warmtepomp condensor | Q81: =+H81+L85 -> 0 | R81: MWh | W81: Bron afvoer condensorwarmte | Z81: =+IF(F89=E91,Q81,0) -> 0 | AA81: MWh
E82: Vermogen | H82: 0 | I82: kW | N82: Vermogen | Q82: =+H82+H82/L84 -> 0 | R82: kW | W82: Vermogen | Z82: =IF(F89=E91,Q82,0) -> 0 | AA82: kW
E83: Equivalente vollast uren | H83: =IF(H82<>0,H81/H82*1000,0) -> 0 | I83: h | K83: SPF WP-KM seizoen | L83: 5 | N83: Equivalente vollast uren | Q83: =+Q81/Q82*1000 ->  | R83: h | T83: TSA2 | W83: Equivalente vollast uren | Z83: =IF(Z82<>0,Z81/Z82*1000,0) -> 0 | AA83: h
E84: Ontwerp temperatuur | F84: 19 | G84: ª | H84: 11 | I84: °C | K84: COP WP-KM bij piek | L84: 5.5 | N84: Ontwerp temperatuur | O84: 34 | P84: ª | Q84: 40 | R84: °C | W84: Ontwerp temperatuur | X84: =IF(F89=E91,+Z82/(Z85*Cw)+Z84,0) -> 18 | Y84: © | Z84: =IF(afvoer_condensorwarmte=naar_bron,+X70,0) -> 18 | AA84: °C
E85: Volumestroom | H85: =H82/(Cw*(-H84+F84)) -> 0 | I85: m3/h | K85: Elektriciteit WP (Mwhe) | L85: =+H81/L83 -> 0 | N85: Volumestroom | Q85: =Q82/(Cw*(Q84-O84)) -> 0 | R85: m3/h | W85: Volumestroom | Z85: =IF(F89=E91,+Z71,0) -> 19.97613365 | AA85: m3/h
AA86: =IF(X84>25,"let op: maximale temperatuur mag max 25°C zijn","") -> 
O87: TSA
E89: Condensorwarmte: | F89: afvoeren naar bron | N89: Afvoer condensorwarmte | Q89: =+IF(F89=E92,Q81,0) -> 0 | R89: MWh
E90: mogelijke keuzes: | N90: Vermogen | Q90: =IF(F89=E92,Q82,0) -> 0 | R90: kW
E91: afvoeren naar bron | F91: (via tweede TSA in serie) | K91: SPF afvoer condensor | L91: 20 | N91: Equivalente vollast uren | Q91: =IF(Q90<>0,Q89/Q90*1000,0) -> 0 | R91: h
E92: afvoeren andere wijze | F92: (dry-cooler, oppervlaktewater) | K92: Elektriciteit (Mwhe) | L92: =+Q89/L91 -> 0 | N92: Ontwerp temperatuur | O92: 30 | P92: ª | Q92: 35 | R92: °C
N93: Volumestroom | Q93: =Q90/(Cw*(Q92-O92)) -> 0 | R93: m3/h
C96: KOELING OVERIG | E96: Koeling overig | H96: 0 | I96: MWh
C97: (dry-cooler, oppervlaktewater, LBK, …) | E97: Vermogen | H97: 0 | I97: kW
E98: Equivalente vollast uren | H98: =IF(H97<>0,H96/H97*1000,0) -> 0 | I98: h | K98: SPF koeling overig | L98: 20
E99: Ontwerp temperatuur | F99: 19 | G99: ª | H99: 11 | I99: °C | K99: Elektriciteit (Mwhe) | L99: =+H96/L98 -> 0
E100: Volumestroom | H100: =H97/(Cw*(-H99+F99)) -> 0 | I100: m3/h
R102: TSA | S102: 2
C104: BALANSVOORZIENING WARMTE LADEN | E104: Inzet balansvoorziening: | F104: niet gelijktijdig met bron | N104: Balansvoorziening warmte laden | Q104: 0 | R104: MWh | W104: Bron balans warmte laden | Z104: =+Q104 -> 0 | AA104: MWh
C105: (dry-cooler, oppervlaktewater, LBK, …) | E105: mogelijke keuzes: | N105: Vermogen | Q105: 0 | R105: kW | W105: Vermogen | Z105: =+Q105 -> 0 | AA105: kW
E106: gelijktijdig met bron | F106: (brondebiet wordt groter) | K106: SPF balansvoorziening | L106: 20 | N106: Equivalente vollast uren | Q106: =IF(Q105<>0,Q104/Q105*1000,0) -> 0 | R106: h | W106: Equivalente vollast uren | Z106: =IF(Z105<>0,Z104/Z105*1000,0) -> 0 | AA106: h
E107: niet gelijktijdig met bron | F107: (max vermogen maatgevend) | K107: Elektriciteit (Mwhe) | L107: =+Q104/L106 -> 0 | N107: Ontwerp temperatuur | O107: =+X107+dT_TSA_koeling+dT_TSA2_balans_warmte_laden -> 21 | P107: ª | Q107: =+H70 -> 11 | R107: °C | W107: Ontwerp temperatuur | X107: =+X70 -> 18 | Y107: © | Z107: =+Z70 -> 10 | AA107: °C
N108: Volumestroom | Q108: =Q105/(Cw*(-Q107+O107)) -> 0 | R108: m3/h | W108: Volumestroom | Z108: =Z105/(Cw*(-Z107+X107)) -> 0 | AA108: m3/h
AE114: Akkordering: | AN114: BRON JAAR TOTAAL
AE115: Deze uitgangspunten zijn akkoord voor het ontwerp van het | AQ115: =IF(AQ116<-1,"let op, warmte overschot is niet toegestaan", "") -> 
AE116: bodemenergiesysteem. | AN116: Koude overschot in de bodem | AQ116: =+AH9-AH51 -> 172.9 | AR116: MWh
AN117: Koude overschot percentage | AQ117: =IF(AH51=0,0,AH9/AH51*100) -> 229.0298507 | AR117: %
AE118: Bedrijfsnaam bovengronds ontwerper:
AN119: Jaardebiet gemiddeld | AP119: =+AH14+AG56 -> 95000 | AR119: m3/jaar
AN120: Jaardebiet maximaal | AP120: =+AH15+AG57 -> 123000 | AR120: m3/jaar
AE122: Naam projectleider: | AN122: SPF BES (totaal) | AO122: =+(L10+L52)/(L11+L53) -> 4.529082177
AE126: Datum:
AE130: Handtekening:
